[Event "GER-chT Youth Countries 2018"]
[Site "Wurzburg"]
[Date "2018.10.04"]
[Round "3"]
[White "Amato, Cristiano"]
[Black "Kageler, Anton Paul"]
[Result "1-0"]
[ECO "B21"]
[WhiteElo "1661"]
[BlackElo "1459"]
[Annotator "NA RC"]
[PlyCount "99"]
[EventDate "2018.10.03"]
[EventType "team-tourn"]
[EventCountry "GER"]
[SourceTitle "playchess.com"]
[Source "ChessBase"]
[SourceQuality "1"]
[TimeControl "40/5400+30:1800+30"]

1. e4 {[%emt 0:00:00]} c5 {[%emt 0:00:00]} 2. f4 {[%emt 0:00:00]} Nc6 {[%emt 0:00:00]} 3. Nf3 {[%emt 0:00:03]} g6 {[%emt 0:00:29]} 4. g3 {[%emt 0:01:35]} Bg7 {[%emt 0:00:55]} 5. c3 {[%emt 0:00:39]} e6 {[%emt 0:03:50]} 6. Bg2 {[%emt 0:01:04]} Nge7 {[%emt 0:01:25]} 7. Na3 {[%emt 0:00:49]} d5 {[%emt 0:02:40]} 8. e5 {[%emt 0:00:14]} a6 {[%emt 0:00:31]} 9. d4 {[%emt 0:01:40]} cxd4 {[%emt 0:10:49]} 10. cxd4 {[%emt 0:01:09]} Qb6 {[%emt 0:01:25]} 11. Nc2 {[%emt 0:01:47]} O-O {[%emt 0:01:21]} 12. O-O {[%emt 0:01:28]} Bd7 {[%emt 0:01:08]} 13. Kh1 {[%emt 0:05:17]} Rac8 {[%emt 0:01:08]} 14. Rb1 {[%emt 0:00:35]} Na5 {[%emt 0:03:45]} 15. Bd2 {[%emt 0:04:06]} Bb5 {[%emt 0:04:16]} 16. Rf2 {[%emt 0:03:32]} Nc4 {[%emt 0:02:32]} 17. Bb4 {[%emt 0:01:33]} Rc7 {[%emt 0:02:52]} 18. b3 {[%emt 0:01:57]} Na5 {[%emt 0:01:23]} 19. Qd2 {[%emt 0:00:59]} Rxc2 {[%emt 0:16:39]} 20. Qxc2 {[%emt 0:02:26]} Bd3 {[%emt 0:01:49]} 21. Qxd3 {[%emt 0:02:22]} Qxb4 {[%emt 0:00:08]} 22. Rc2 {[%emt 0:01:23]} Nac6 {[%emt 0:00:22]} 23. Ra1 {[%emt 0:04:31]} Qb6 {[%emt 0:01:40]} 24. Qc3 {[%emt 0:01:37]} Rc8 {[%emt 0:05:02]} 25. Qc5 {[%emt 0:03:41]} Qd8 {[%emt 0:01:39]} 26. Rac1 {[%emt 0:02:08]} Bf8 {[%emt 0:00:59]} 27. Qc3 {[%emt 0:02:38]} Nf5 {[%emt 0:01:23]} 28. g4 {[%emt 0:01:04]} Ba3 {[%emt 0:04:00]} 29. gxf5 {[%emt 0:00:21]} Bxc1 {[%emt 0:00:14]} 30. Rxc1 {[%emt 0:00:12]} exf5 {[%emt 0:01:00]} 31. Qe3 {[%emt 0:02:52]} Qe7 {[%emt 0:05:16]} 32. e6 {[%emt 0:00:49]} Qxe6 {[%emt 0:08:37]} 33. Qxe6 {[%emt 0:00:12]} fxe6 {[%emt 0:00:09]} 34. Re1 {[%emt 0:00:04]} Re8 {[%emt 0:00:52]} 35. Ng5 {[%emt 0:00:25]} Nxd4 {[%emt 0:04:06]} 36. Bxd5 {[%emt 0:00:22]} h6 {[%emt 0:00:58]} 37. Nxe6 {[%emt 0:00:43]} Nxe6 {[%emt 0:00:08]} 38. Rxe6 {[%emt 0:00:23]} Rxe6 {[%emt 0:00:27]} 39. Bxe6+ {[%emt 0:00:02]} Kf8 {[%emt 0:00:21]} 40. Bc8 {[%emt 0:00:07]} b5 {[%emt 0:00:28]} 41. b4 {[%emt 0:30:25]} Ke7 {[%emt 0:31:33]} 42. Bxa6 {[%emt 0:00:05]} Kd6 {[%emt 0:00:43]} 43. Bxb5 {[%emt 0:00:07]} Kc7 {[%emt 0:00:53]} 44. a4 {[%emt 0:00:09]} Kb6 {[%emt 0:00:07]} 45. Be8 {[%emt 0:00:06]} g5 {[%emt 0:00:15]} 46. fxg5 {[%emt 0:00:18]} hxg5 {[%emt 0:00:09]} 47. Kg2 {[%emt 0:00:10]} f4 {[%emt 0:00:36]} 48. Kf3 {[%emt 0:00:21]} Kb7 {[%emt 0:00:46]} 49. Bd7 {[%emt 0:00:16]} Kc7 {[%emt 0:00:15]} 50. Bg4 {[%emt 0:00:07]} 1-0

[Event "GER-chT Youth Countries 2018"]
[Site "Wurzburg"]
[Date "2018.10.04"]
[Round "3"]
[White "Grunert, Wilhelm"]
[Black "Liu, Sijia Anna"]
[Result "1/2-1/2"]
[ECO "B90"]
[WhiteElo "1659"]
[BlackElo "1730"]
[Annotator "NA RC"]
[PlyCount "98"]
[EventDate "2018.10.03"]
[EventType "team-tourn"]
[EventCountry "GER"]
[SourceTitle "playchess.com"]
[Source "ChessBase"]
[SourceQuality "1"]
[TimeControl "40/5400+30:1800+30"]

1. e4 c5 2. Nf3 d6 3. d4 cxd4 4. Nxd4 Nf6 5. Nc3 a6 6. Be3 e6 7. f3 b5 8. Qd2 Nbd7 9. g4 Nb6 10. h4 Bb7 11. h5 Nfd7 12. g5 Ne5 13. b3 Rc8 14. f4 Ng4 15. Be2 Nxe3 16. Qxe3 Qc7 17. Kd2 d5 18. e5 Bb4 19. Rh3 Nd7 20. a3 Bc5 21. Qd3 Qa5 22. g6 hxg6 23. Nxe6 fxe6 24. Qxg6+ Kd8 25. Qxg7 Re8 26. h6 d4 27. h7 dxc3+ 28. Kd1 Qb6 29. h8=Q Rxh8 30. Rxh8+ Kc7 31. Rxc8+ Kxc8 32. Ke1 Bg1 33. Qg3 Be4 34. Qxc3+ Qc5 35. Qxc5+ Nxc5 36. Kd2 Bd4 37. Rd1 Bb2 38. b4 Na4 39. Bg4 Bd5 40. Ke3 Kc7 41. f5 Bxe5 42. fxe6 Nb6 43. e7 Nc4+ 44. Ke2 Bc6 {[%emt 2:07:52]} 45. Bh5 {[%emt 1:43:17]} Nd6 {[%emt 0:00:56]} 46. Rxd6 {[%emt 0:01:22]} Kxd6 {[%emt 0:00:30]} 47. e8=Q {[%emt 0:00:30]} Bxe8 {[%emt 0:00:30]} 48. Bxe8 {[%emt 0:00:30]} Bb2 {[%emt 0:00:27]} 49. a4 {[%emt 0:00:00]} bxa4 {[%emt 0:00:30]} 1/2-1/2

[Event "GER-chT Youth Countries 2018"]
[Site "Wurzburg"]
[Date "2018.10.04"]
[Round "3"]
[White "Werner, Rosalie"]
[Black "Braeutigam, Katerina"]
[Result "0-1"]
[ECO "B01"]
[WhiteElo "1566"]
[BlackElo "1696"]
[Annotator "NA RC"]
[PlyCount "112"]
[EventDate "2018.10.03"]
[EventType "team-tourn"]
[EventCountry "GER"]
[SourceTitle "playchess.com"]
[Source "ChessBase"]
[SourceQuality "1"]
[TimeControl "40/5400+30:1800+30"]

1. e4 {[%emt 0:00:00]} d5 {[%emt 0:00:00]} 2. exd5 {[%emt 0:00:00]} Qxd5 {[%emt 0:00:00]} 3. d4 {[%emt 0:00:00]} Qa5+ {[%emt 0:00:00]} 4. c3 {[%emt 0:04:45]} Bf5 {[%emt 0:00:19]} 5. Bd2 {[%emt 0:01:49]} c6 {[%emt 0:01:20]} 6. c4 {[%emt 0:10:46]} Qc7 {[%emt 0:00:52]} 7. Nf3 {[%emt 0:04:21]} Nf6 {[%emt 0:00:21]} 8. Nc3 {[%emt 0:01:46]} Nbd7 {[%emt 0:00:32]} 9. Be2 {[%emt 0:02:01]} e6 {[%emt 0:00:26]} 10. O-O {[%emt 0:03:02]} Be7 {[%emt 0:00:14]} 11. Be3 {[%emt 0:04:42]} Nb6 {[%emt 0:04:04]} 12. Qd2 {[%emt 0:03:30]} Ne4 {[%emt 0:02:14]} 13. Nxe4 {[%emt 0:02:58]} Bxe4 {[%emt 0:00:14]} 14. Rac1 {[%emt 0:00:32]} O-O {[%emt 0:01:21]} 15. Rfd1 {[%emt 0:03:54]} Rfd8 {[%emt 0:01:04]} 16. Qc3 {[%emt 0:09:37]} Bf6 {[%emt 0:03:25]} 17. Qb3 {[%emt 0:12:09]} Qe7 {[%emt 0:02:53]} 18. Rd2 {[%emt 0:04:48]} Qc7 {[%emt 0:08:01]} 19. Rdd1 {[%emt 0:05:32]} Nd7 {[%emt 0:09:10]} 20. Nd2 {[%emt 0:03:47]} Bg6 {[%emt 0:00:40]} 21. f3 {[%emt 0:02:47]} Nb6 {[%emt 0:02:04]} 22. Ne4 {[%emt 0:01:06]} Be7 {[%emt 0:02:27]} 23. a3 {[%emt 0:01:13]} f6 {[%emt 0:18:31]} 24. d5 {[%emt 0:01:20]} exd5 {[%emt 0:02:41]} 25. cxd5 {[%emt 0:00:41]} Bf7 {[%emt 0:00:40]} 26. Bxb6 {[%emt 0:00:33]} axb6 {[%emt 0:04:23]} 27. Bc4 {[%emt 0:01:14]} cxd5 {[%emt 0:15:20]} 28. Bb5 {[%emt 0:07:19]} dxe4 {[%emt 0:01:56]} 29. Rxc7 {[%emt 0:03:40]} Bxb3 {[%emt 0:00:13]} 30. Rxd8+ {[%emt 0:00:39]} Bxd8 {[%emt 0:00:34]} 31. Rxb7 {[%emt 0:00:48]} exf3 {[%emt 0:00:55]} 32. Bc6 {[%emt 0:01:44]} Rc8 {[%emt 0:01:30]} 33. Bxf3 {[%emt 0:00:34]} Kf8 {[%emt 0:03:36]} 34. Rd7 {[%emt 0:00:49]} Rc1+ {[%emt 0:02:54]} 35. Kf2 {[%emt 0:00:17]} Be7 {[%emt 0:01:14]} 36. Ke3 {[%emt 0:00:31]} Be6 {[%emt 0:02:46]} 37. Rd2 {[%emt 0:00:44]} Bc5+ {[%emt 0:01:57]} 38. Ke4 {[%emt 0:01:05]} Re1+ {[%emt 0:01:06]} 39. Kd3 {[%emt 0:00:51]} Re3+ {[%emt 0:01:52]} 40. Kc2 {[%emt 0:00:20]} Bb3+ {[%emt 0:00:07]} 41. Kc1 {[%emt 0:30:15]} Re1+ {[%emt 0:30:12]} 42. Rd1 {[%emt 0:01:20]} Be3+ {[%emt 0:00:17]} 43. Kb1 {[%emt 0:00:06]} Bxd1 {[%emt 0:00:37]} 44. Bxd1 {[%emt 0:00:13]} Rxd1+ {[%emt 0:00:06]} 45. Ka2 {[%emt 0:00:18]} Rd2 {[%emt 0:00:49]} 46. a4 {[%emt 0:00:37]} Rxg2 {[%emt 0:00:20]} 47. Ka3 {[%emt 0:00:19]} f5 {[%emt 0:00:31]} 48. b3 {[%emt 0:00:19]} f4 {[%emt 0:00:24]} 49. Kb4 {[%emt 0:00:10]} f3 {[%emt 0:00:55]} 50. Kb5 {[%emt 0:00:12]} f2 {[%emt 0:00:08]} 51. Ka6 {[%emt 0:00:14]} f1=Q+ 52. Kb7 {[%emt 0:00:23]} Rg6 {[%emt 0:00:49]} 53. b4 {[%emt 0:00:15]} b5 {[%emt 0:01:07]} 54. a5 {[%emt 0:00:18]} Qf7+ {[%emt 0:00:21]} 55. Kb8 {[%emt 0:00:30]} Re6 {[%emt 0:00:21]} 56. a6 {[%emt 0:00:14]} Re8# {[%emt 0:00:05]} 0-1

[Event "GER-chT Youth Countries 2018"]
[Site "Wurzburg"]
[Date "2018.10.04"]
[Round "3"]
[White "Hentschel, Lena"]
[Black "Ruhmke, Rebecca"]
[Result "1-0"]
[ECO "A47"]
[WhiteElo "1533"]
[BlackElo "1399"]
[Annotator "NA RC"]
[PlyCount "67"]
[EventDate "2018.10.03"]
[EventType "team-tourn"]
[EventCountry "GER"]
[SourceTitle "playchess.com"]
[Source "ChessBase"]
[SourceQuality "1"]
[TimeControl "40/5400+30:1800+30"]

1. d4 {[%emt 0:00:00]} Nf6 {[%emt 0:00:00]} 2. Nf3 {[%emt 0:00:00]} b6 {[%emt 0:00:00]} 3. Bf4 {[%emt 0:00:32]} Bb7 {[%emt 0:01:09]} 4. e3 {[%emt 0:00:53]} e6 {[%emt 0:04:51]} 5. Nbd2 {[%emt 0:01:37]} d6 {[%emt 0:05:01]} 6. Be2 {[%emt 0:03:15]} Nbd7 {[%emt 0:09:38]} 7. O-O {[%emt 0:01:45]} Be7 {[%emt 0:05:13]} 8. h3 {[%emt 0:01:48]} O-O {[%emt 0:01:39]} 9. c3 {[%emt 0:01:57]} Ne4 {[%emt 0:14:02]} 10. Nxe4 {[%emt 0:04:49]} Bxe4 {[%emt 0:00:08]} 11. Bd3 {[%emt 0:00:34]} Nf6 {[%emt 0:02:46]} 12. Bxe4 {[%emt 0:05:26]} Nxe4 {[%emt 0:00:15]} 13. Qd3 {[%emt 0:00:36]} d5 {[%emt 0:02:42]} 14. Ne5 {[%emt 0:04:01]} c5 {[%emt 0:10:44]} 15. Nc6 {[%emt 0:02:41]} c4 {[%emt 0:04:07]} 16. Qc2 {[%emt 0:02:11]} Qd7 {[%emt 0:01:20]} 17. Nxe7+ {[%emt 0:00:54]} Qxe7 {[%emt 0:00:09]} 18. f3 {[%emt 0:00:47]} Nd6 {[%emt 0:02:20]} 19. e4 {[%emt 0:03:41]} f6 {[%emt 0:05:40]} 20. e5 {[%emt 0:04:11]} fxe5 {[%emt 0:01:24]} 21. Bxe5 {[%emt 0:00:34]} Nf5 {[%emt 0:03:58]} 22. Qd2 {[%emt 0:03:39]} Rf7 {[%emt 0:03:34]} 23. Rae1 {[%emt 0:02:24]} Re8 {[%emt 0:02:42]} 24. Rf2 {[%emt 0:04:14]} Nh4 {[%emt 0:02:00]} 25. Qe3 {[%emt 0:10:26]} Nf5 {[%emt 0:00:24]} 26. Qf4 {[%emt 0:02:03]} Nh6 {[%emt 0:01:05]} 27. Qh2 {[%emt 0:01:16]} a5 {[%emt 0:02:21]} 28. Rfe2 {[%emt 0:02:23]} Rf5 {[%emt 0:01:30]} 29. Bc7 {[%emt 0:02:12]} b5 {[%emt 0:06:37]} 30. Rxe6 {[%emt 0:02:18]} Qxe6 {[%emt 0:00:49]} 31. Rxe6 {[%emt 0:00:08]} Rxe6 {[%emt 0:00:01]} 32. Bxa5 {[%emt 0:00:45]} Re2 {[%emt 0:00:19]} 33. Qb8+ {[%emt 0:00:51]} Rf8 {[%emt 0:00:22]} 34. Qxb5 {[%emt 0:00:47]} 1-0

[Event "GER-chT Youth Countries 2018"]
[Site "Wurzburg"]
[Date "2018.10.04"]
[Round "3"]
[White "Schulz, Hannah"]
[Black "Butenandt, Svenja"]
[Result "0-1"]
[ECO "B01"]
[WhiteElo "1527"]
[BlackElo "1762"]
[Annotator "NA RC"]
[PlyCount "34"]
[EventDate "2018.10.03"]
[EventType "team-tourn"]
[EventCountry "GER"]
[SourceTitle "playchess.com"]
[Source "ChessBase"]
[SourceQuality "1"]
[TimeControl "40/5400+30:1800+30"]

1. e4 {[%emt 0:00:00]} d5 {[%emt 0:00:00]} 2. exd5 {[%emt 0:00:00]} Qxd5 {[%emt 0:00:00]} 3. d4 {[%emt 0:00:00]} e5 {[%emt 0:00:00]} 4. dxe5 {[%emt 0:03:25]} Qxd1+ {[%emt 0:00:06]} 5. Kxd1 {[%emt 0:00:08]} Nc6 {[%emt 0:00:14]} 6. Nf3 {[%emt 0:00:34]} Bg4 {[%emt 0:01:25]} 7. Be2 {[%emt 0:01:25]} O-O-O+ {[%emt 0:01:49]} 8. Bd2 {[%emt 0:02:13]} Bc5 {[%emt 0:03:05]} 9. Rf1 {[%emt 0:02:32]} Bxf3 {[%emt 0:07:46]} 10. Bxf3 {[%emt 0:00:32]} Nxe5 {[%emt 0:00:11]} 11. Be2 {[%emt 0:02:11]} Nf6 {[%emt 0:01:00]} 12. f3 {[%emt 0:01:34]} Nd5 13. Ke1 {[%emt 0:05:30]} Rhe8 {[%emt 0:09:32]} 14. Nc3 {[%emt 0:02:18]} Nc4 {[%emt 0:06:22]} 15. Nxd5 {[%emt 0:03:18]} Rxd5 {[%emt 0:00:17]} 16. Bc3 {[%emt 0:03:37]} Ne3 {[%emt 0:01:22]} 17. Rc1 {[%emt 0:01:01]} Nxg2# {[%emt 0:01:03] Rh1} 0-1

[Event "GER-chT Youth Countries 2018"]
[Site "Wurzburg"]
[Date "2018.10.04"]
[Round "3"]
[White "Woerz, Ann-Sophie"]
[Black "Alferova, Emily"]
[Result "0-1"]
[ECO "C45"]
[WhiteElo "1463"]
[BlackElo "1316"]
[Annotator "NA RC"]
[PlyCount "80"]
[EventDate "2018.10.03"]
[EventType "team-tourn"]
[EventCountry "GER"]
[SourceTitle "playchess.com"]
[Source "ChessBase"]
[SourceQuality "1"]
[TimeControl "40/5400+30:1800+30"]

1. e4 {[%emt 0:00:00]} e5 {[%emt 0:00:00]} 2. Nf3 {[%emt 0:00:00]} Nc6 {[%emt 0:00:00]} 3. d4 {[%emt 0:00:00]} exd4 {[%emt 0:00:00]} 4. Nxd4 {[%emt 0:00:00]} Bc5 {[%emt 0:00:00]} 5. Be3 {[%emt 0:00:00]} Qf6 {[%emt 0:00:06]} 6. c3 {[%emt 0:00:05]} Nge7 {[%emt 0:00:27]} 7. Bc4 {[%emt 0:00:30]} Ne5 {[%emt 0:05:05]} 8. Be2 {[%emt 0:00:32]} d6 {[%emt 0:05:01]} 9. f4 {[%emt 0:02:35]} Ng4 {[%emt 0:09:58]} 10. Bxg4 {[%emt 0:03:42]} Qh4+ {[%emt 0:00:25]} 11. g3 {[%emt 0:03:11]} Qxg4 {[%emt 0:00:46]} 12. Qxg4 {[%emt 0:01:13]} Bxg4 {[%emt 0:00:08]} 13. Nd2 {[%emt 0:01:06]} O-O-O {[%emt 0:04:12]} 14. h3 {[%emt 0:01:40]} Bd7 {[%emt 0:00:30]} 15. O-O-O {[%emt 0:06:07]} Rhe8 {[%emt 0:01:53]} 16. Rde1 {[%emt 0:04:30]} f5 {[%emt 0:04:46]} 17. N4b3 {[%emt 0:05:38]} Bxe3 {[%emt 0:00:56]} 18. Rxe3 {[%emt 0:00:03]} fxe4 {[%emt 0:00:21]} 19. Nxe4 {[%emt 0:01:06]} Bc6 {[%emt 0:00:46]} 20. Na5 {[%emt 0:08:07]} Nf5 {[%emt 0:04:09]} 21. Nxc6 {[%emt 0:01:45]} bxc6 {[%emt 0:00:07]} 22. Ree1 {[%emt 0:03:17]} h6 {[%emt 0:02:52]} 23. g4 {[%emt 0:03:25]} d5 {[%emt 0:00:57]} 24. Nc5 {[%emt 0:04:36]} Ng3 {[%emt 0:01:21]} 25. Rxe8 {[%emt 0:02:02]} Rxe8 {[%emt 0:00:09]} 26. Rd1 {[%emt 0:03:20]} Ne2+ {[%emt 0:01:46]} 27. Kc2 {[%emt 0:00:48]} Nxf4 {[%emt 0:00:13]} 28. h4 {[%emt 0:01:12]} Ng2 {[%emt 0:00:40]} 29. Rd4 {[%emt 0:03:44]} Nxh4 {[%emt 0:01:51]} 30. Ra4 {[%emt 0:01:21]} Kd8 {[%emt 0:05:46]} 31. Rxa7 {[%emt 0:01:44]} Re2+ {[%emt 0:06:19]} 32. Kb3 {[%emt 0:02:16]} Rg2 {[%emt 0:02:00]} 33. Ra4 {[%emt 0:02:38]} Nf3 {[%emt 0:04:49]} 34. Ne6+ {[%emt 0:00:45]} Kd7 {[%emt 0:00:52]} 35. Nxg7 {[%emt 0:00:47]} Ne5 {[%emt 0:01:57]} 36. Nh5 {[%emt 0:03:28]} Nc4 {[%emt 0:01:13]} 37. Kb4 {[%emt 0:03:36]} Rxb2+ {[%emt 0:02:38]} 38. Kc5 {[%emt 0:00:15]} Rb5+ {[%emt 0:00:11]} 39. Kd4 {[%emt 0:00:17]} c5+ 40. Kxd5 {[%emt 0:01:12]} Nb6+ 0-1

[Event "GER-chT Youth Countries 2018"]
[Site "Wurzburg"]
[Date "2018.10.04"]
[Round "3"]
[White "Genova, Magdalina"]
[Black "Lutz, Adam"]
[Result "0-1"]
[ECO "A13"]
[WhiteElo "1425"]
[BlackElo "1787"]
[Annotator "NA RC"]
[PlyCount "56"]
[EventDate "2018.10.03"]
[EventType "team-tourn"]
[EventCountry "GER"]
[SourceTitle "playchess.com"]
[Source "ChessBase"]
[SourceQuality "1"]
[TimeControl "40/5400+30:1800+30"]

1. c4 {[%emt 0:00:00]} e6 {[%emt 0:00:00]} 2. Nc3 {[%emt 0:00:00]} d5 {[%emt 0:00:00]} 3. cxd5 {[%emt 0:04:29]} exd5 {[%emt 0:00:06]} 4. d4 {[%emt 0:00:42]} Nf6 {[%emt 0:01:01]} 5. e3 {[%emt 0:02:54]} Bf5 {[%emt 0:02:28]} 6. Nge2 {[%emt 0:04:16]} c5 {[%emt 0:01:34]} 7. dxc5 {[%emt 0:12:27]} Bxc5 {[%emt 0:00:29]} 8. g3 {[%emt 0:04:14]} Nc6 {[%emt 0:01:46]} 9. Bg2 {[%emt 0:07:28]} O-O {[%emt 0:02:40]} 10. Nxd5 {[%emt 0:09:56]} Nxd5 {[%emt 0:00:42]} 11. Qxd5 {[%emt 0:10:54]} Qxd5 {[%emt 0:00:54]} 12. Bxd5 {[%emt 0:00:15]} Nb4 {[%emt 0:00:16]} 13. Bb3 {[%emt 0:09:37]} Nd3+ {[%emt 0:01:24]} 14. Kf1 {[%emt 0:15:26]} Bh3+ {[%emt 0:03:25]} 15. Kg1 {[%emt 0:00:10]} Ne1 {[%emt 0:00:44]} 16. Bd5 {[%emt 0:01:58]} Rad8 {[%emt 0:01:33]} 17. Nf4 {[%emt 0:01:52]} Rxd5 {[%emt 0:01:02]} 18. Nxh3 {[%emt 0:00:36]} Rd1 {[%emt 0:00:41]} 19. Nf4 {[%emt 0:02:17]} Nc2+ {[%emt 0:00:19]} 20. Kg2 {[%emt 0:01:27]} Rxh1 {[%emt 0:00:08]} 21. Kxh1 {[%emt 0:00:17]} Nxa1 {[%emt 0:00:09]} 22. Nd3 {[%emt 0:01:38]} Be7 {[%emt 0:01:00]} 23. b4 {[%emt 0:03:29]} Rd8 {[%emt 0:00:12]} 24. Nb2 {[%emt 0:01:04]} Bxb4 {[%emt 0:00:20]} 25. Kg2 {[%emt 0:00:47]} Ba3 {[%emt 0:00:28]} 26. e4 {[%emt 0:01:24]} Rc8 {[%emt 0:00:17]} 27. Nd3 {[%emt 0:00:23]} Bxc1 {[%emt 0:00:09]} 28. Nxc1 {[%emt 0:00:04]} Rxc1 {[%emt 0:00:12]} 0-1

[Event "GER-chT Youth Countries 2018"]
[Site "Wurzburg"]
[Date "2018.10.04"]
[Round "3"]
[White "Hubert, Charlotte"]
[Black "Nguyen, Jenny Ha-Linh"]
[Result "0-1"]
[ECO "C05"]
[WhiteElo "1376"]
[BlackElo "1230"]
[Annotator "NA RC"]
[PlyCount "104"]
[EventDate "2018.10.03"]
[EventType "team-tourn"]
[EventCountry "GER"]
[SourceTitle "playchess.com"]
[Source "ChessBase"]
[SourceQuality "1"]
[TimeControl "40/5400+30:1800+30"]

1. e4 {[%emt 0:00:00]} e6 {[%emt 0:00:00]} 2. d4 {[%emt 0:00:00]} d5 {[%emt 0:00:00]} 3. Nd2 {[%emt 0:00:00]} Nf6 {[%emt 0:00:00]} 4. e5 {[%emt 0:00:17]} Nfd7 {[%emt 0:00:29]} 5. c3 {[%emt 0:02:13]} c5 {[%emt 0:00:26]} 6. Bd3 {[%emt 0:01:29]} Nc6 {[%emt 0:00:51]} 7. Ne2 {[%emt 0:00:11]} Be7 {[%emt 0:00:28]} 8. Nf3 {[%emt 0:02:18]} O-O {[%emt 0:01:28]} 9. O-O {[%emt 0:01:12]} cxd4 {[%emt 0:04:37]} 10. cxd4 {[%emt 0:00:47]} Nb6 {[%emt 0:00:46]} 11. Bd2 {[%emt 0:09:32]} Bd7 {[%emt 0:01:04]} 12. Rc1 {[%emt 0:06:22]} Rc8 {[%emt 0:05:29]} 13. Bc3 {[%emt 0:11:40]} Nb4 {[%emt 0:02:40]} 14. Bb1 {[%emt 0:04:46]} Nc4 {[%emt 0:01:23]} 15. Nd2 {[%emt 0:04:55]} Qb6 {[%emt 0:12:02]} 16. a3 {[%emt 0:12:20]} Na6 {[%emt 0:03:38]} 17. Qc2 {[%emt 0:01:56]} g6 {[%emt 0:19:05]} 18. Nf3 {[%emt 0:08:42]} Nc7 {[%emt 0:06:38]} 19. Ba2 {[%emt 0:08:07]} Nb5 {[%emt 0:01:19]} 20. Qb3 {[%emt 0:00:54]} Nxc3 {[%emt 0:01:38]} 21. Rxc3 {[%emt 0:01:21]} Nxb2 {[%emt 0:01:47]} 22. Qxb6 {[%emt 0:00:47]} axb6 {[%emt 0:00:09]} 23. Rb1 {[%emt 0:01:00]} Na4 {[%emt 0:00:47]} 24. Rxc8 {[%emt 0:01:46]} Rxc8 {[%emt 0:00:05]} 25. Rc1 {[%emt 0:03:34]} Rxc1+ {[%emt 0:00:33]} 26. Nxc1 {[%emt 0:00:10]} Bxa3 {[%emt 0:00:04]} 27. Nd3 {[%emt 0:00:44]} b5 {[%emt 0:01:01]} 28. Bb3 {[%emt 0:01:30]} b4 {[%emt 0:00:46]} 29. Nfe1 {[%emt 0:00:46]} Nc3 {[%emt 0:02:18]} 30. Nc2 {[%emt 0:01:34]} Bc6 {[%emt 0:02:42]} 31. Kf1 {[%emt 0:01:39]} Bb5 {[%emt 0:00:36]} 32. Nce1 {[%emt 0:01:55]} Bxd3+ {[%emt 0:02:38]} 33. Nxd3 {[%emt 0:00:17]} Nb5 {[%emt 0:00:21]} 34. Ke1 {[%emt 0:03:31]} Nxd4 {[%emt 0:00:12]} 35. Ba2 {[%emt 0:00:39]} b3 {[%emt 0:00:58]} 36. Bb1 {[%emt 0:00:08]} b2 {[%emt 0:00:20]} 37. Kd2 {[%emt 0:00:47]} b6 {[%emt 0:04:48]} 38. Kc3 {[%emt 0:00:38]} Nc6 {[%emt 0:00:24]} 39. Kb3 {[%emt 0:00:40]} Bc5 {[%emt 0:00:34]} 40. Kxb2 {[%emt 0:00:43]} Bd4+ {[%emt 0:00:09]} 41. Kb3 {[%emt 0:30:47]} Nxe5 {[%emt 0:30:25]} 42. Nxe5 {[%emt 0:00:23]} Bxe5 {[%emt 0:00:03]} 43. h3 {[%emt 0:00:24]} Bd4 {[%emt 0:01:15]} 44. f3 {[%emt 0:00:10]} f5 {[%emt 0:01:05]} 45. Kc2 {[%emt 0:00:27]} Kf7 {[%emt 0:00:22]} 46. Kd3 {[%emt 0:00:56]} Bc5 {[%emt 0:00:28]} 47. Ke2 {[%emt 0:00:29]} e5 {[%emt 0:00:12]} 48. Kd2 {[%emt 0:00:31]} e4 {[%emt 0:00:23]} 49. fxe4 {[%emt 0:00:11]} dxe4 {[%emt 0:00:04]} 50. Ke2 {[%emt 0:00:21]} b5 {[%emt 0:00:46]} 51. Ba2+ {[%emt 0:00:22]} Kf6 {[%emt 0:00:12]} 52. Bb3 {[%emt 0:00:17]} Ke5 {[%emt 0:00:04]} 0-1

[Event "GER-chT Youth Countries 2018"]
[Site "Wurzburg"]
[Date "2018.10.04"]
[Round "3"]
[White "Zoellner, Bente"]
[Black "Praus, Pia-Rosa"]
[Result "1-0"]
[ECO "E91"]
[WhiteElo "1354"]
[BlackElo "1150"]
[Annotator "NA RC"]
[PlyCount "97"]
[EventDate "2018.10.03"]
[EventType "team-tourn"]
[EventCountry "GER"]
[SourceTitle "playchess.com"]
[Source "ChessBase"]
[SourceQuality "1"]
[TimeControl "40/5400+30:1800+30"]

1. d4 {[%emt 0:00:00]} d6 {[%emt 0:00:00]} 2. c4 {[%emt 0:00:00]} g6 {[%emt 0:00:00]} 3. e4 {[%emt 0:00:09]} Bg7 {[%emt 0:00:24]} 4. Nf3 {[%emt 0:00:22]} Nf6 {[%emt 0:00:10]} 5. Nc3 {[%emt 0:00:09]} O-O {[%emt 0:00:12]} 6. Be2 {[%emt 0:00:11]} Nbd7 {[%emt 0:01:20]} 7. Bg5 {[%emt 0:00:21]} b6 {[%emt 0:01:28]} 8. O-O {[%emt 0:00:22]} Bb7 {[%emt 0:00:08]} 9. Bd3 {[%emt 0:00:49]} c5 {[%emt 0:04:49]} 10. d5 {[%emt 0:01:13]} a6 {[%emt 0:03:41]} 11. Qb3 {[%emt 0:02:36]} Ng4 {[%emt 0:05:34]} 12. Be2 {[%emt 0:01:46]} Nge5 {[%emt 0:00:49]} 13. Nxe5 {[%emt 0:00:36]} Nxe5 {[%emt 0:00:11]} 14. Na4 {[%emt 0:02:12]} Nd7 {[%emt 0:01:00]} 15. Bg4 {[%emt 0:02:03]} b5 {[%emt 0:02:01]} 16. cxb5 {[%emt 0:01:14]} axb5 {[%emt 0:00:12]} 17. Qxb5 {[%emt 0:00:19]} Ba6 {[%emt 0:01:26]} 18. Qxd7 {[%emt 0:00:34]} Qxd7 {[%emt 0:00:08]} 19. Bxd7 {[%emt 0:00:06]} f6 {[%emt 0:00:34]} 20. Be3 {[%emt 0:01:19]} Bxf1 {[%emt 0:00:21]} 21. Kxf1 {[%emt 0:00:10]} Kh8 {[%emt 0:02:42]} 22. Be6 {[%emt 0:01:05]} Rxa4 {[%emt 0:00:19]} 23. b3 {[%emt 0:00:12]} Rxe4 {[%emt 0:00:14]} 24. Bd2 {[%emt 0:00:43]} f5 {[%emt 0:00:20]} 25. Rc1 {[%emt 0:01:01]} Be5 {[%emt 0:03:00]} 26. Rc2 {[%emt 0:02:14]} Bd4 {[%emt 0:01:45]} 27. g3 {[%emt 0:01:52]} f4 {[%emt 0:00:45]} 28. Bxf4 {[%emt 0:02:21]} Be5 {[%emt 0:00:47]} 29. Bd2 {[%emt 0:06:24]} Bd4 {[%emt 0:02:11]} 30. f4 {[%emt 0:05:32]} Be3 {[%emt 0:00:44]} 31. Bc3+ {[%emt 0:02:36]} Bd4 {[%emt 0:01:41]} 32. Ba5 {[%emt 0:04:03]} g5 {[%emt 0:00:28]} 33. f5 {[%emt 0:01:19]} h5 {[%emt 0:01:15]} 34. h3 {[%emt 0:01:44]} h4 {[%emt 0:00:43]} 35. g4 {[%emt 0:00:52]} Re3 {[%emt 0:00:15]} 36. Bd2 {[%emt 0:04:10]} Rxh3 {[%emt 0:01:05]} 37. Bxg5 {[%emt 0:00:20]} Rg3 {[%emt 0:02:06]} 38. Bxe7 {[%emt 0:02:24]} Re8 {[%emt 0:01:18]} 39. Bxh4 {[%emt 0:00:35]} Rxg4 {[%emt 0:00:32]} 40. Rh2 {[%emt 0:01:01]} Kg7 {[%emt 0:02:56]} 41. Ke2 {[%emt 0:31:16]} Ra8 {[%emt 0:30:12]} 42. Kf3 {[%emt 0:00:49]} Rxh4 {[%emt 0:00:52]} 43. Rxh4 {[%emt 0:00:29]} Rxa2 {[%emt 0:00:03]} 44. Rg4+ {[%emt 0:00:46]} Kf8 {[%emt 0:00:43]} 45. Rg6 {[%emt 0:01:41]} Ra3 {[%emt 0:00:42]} 46. f6 {[%emt 0:00:12]} Rxb3+ {[%emt 0:00:37]} 47. Ke2 {[%emt 0:00:39]} Re3+ {[%emt 0:01:25]} 48. Kd2 {[%emt 0:00:10]} Rf3 {[%emt 0:00:23]} 49. Rg8# {[%emt 0:00:20]} 1-0